bitfinex-derivatives/quotes_BTCF0:USTF0_20260214
["timestamp","ask_amount","ask_price","bid_price","bid_amount"]
[1771075314323,0.014403,69465.0,69453.0,0.014406]
[1771075314523,0.01492,69471.0,69458.0,0.014405]
[1771075314730,0.014402,69470.0,69459.0,0.01496]
[1771075314925,0.14408,69473.0,69459.0,0.01496]
[1771075314926,0.14408,69473.0,69464.0,0.014403]
[1771075315126,0.01496,69483.0,69465.0,0.14408]
[1771075315327,0.014398,69488.0,69474.0,0.014401]
[1771075315534,0.014398,69488.0,69475.0,0.01496]
[1771075315535,0.014399,69486.0,69475.0,0.01496]
[1771075315827,0.014399,69485.0,69472.0,0.014402]
[1771075316125,0.014399,69485.0,69436.0,0.37804207]
[1771075316126,0.0144,69479.0,69459.0,0.01492]
[1771075316426,0.02932,69478.0,69460.0,0.014404]
[1771075316630,0.014401,69477.0,69464.0,0.014403]
[1771075316830,0.014401,69477.0,69465.0,0.01496]
[1771075317233,0.02932,69478.0,69465.0,0.029363]
[1771075317832,0.014401,69474.0,69466.0,0.01496]
[1771075318030,0.014401,69474.0,69467.0,0.01496]
[1771075318231,0.014401,69476.0,69467.0,0.01496]
[1771075318431,0.01492,69478.0,69467.0,0.029363]
[1771075318627,0.01492,69478.0,69469.0,0.014402]
[1771075318832,0.14408,69484.0,69474.0,0.014401]
[1771075318833,0.01492,69482.0,69474.0,0.014401]
[1771075319133,0.14408,69484.0,69474.0,0.01492]
[1771075319533,0.014399,69483.0,69475.0,0.01492]
[1771075320034,0.158479,69484.0,69475.0,0.01492]
[1771075320234,0.014403,69465.0,69451.0,0.014406]
[1771075320531,0.014403,69465.0,69427.0,0.720572]
[1771075320532,0.14408,69469.0,69454.0,0.37158681]
[1771075320734,0.14408,69477.0,69461.0,0.37158681]
[1771075320928,0.01496,69478.0,69468.0,0.014402]
[1771075321232,0.14408,69482.0,69469.0,0.15904]
[1771075321426,0.14408,69482.0,69472.0,0.014402]
[1771075322432,0.14408,69482.0,69473.0,0.014401]
[1771075322625,0.01496,69484.0,69475.0,0.014401]
[1771075322827,0.01496,69484.0,69475.0,0.029361]
[1771075323027,0.01496,69484.0,69475.0,0.01496]
[1771075323234,0.029359,69487.0,69475.0,0.01496]
[1771075323932,0.0144,69483.0,69476.0,0.01496]
[1771075324135,0.014399,69484.0,69476.0,0.01492]
[1771075324330,0.014399,69485.0,69476.0,0.01492]
[1771075324734,0.014399,69486.0,69476.0,0.01492]
[1771075325231,0.014399,69484.0,69476.0,0.01492]
[1771075325431,0.014399,69486.0,69476.0,0.01492]
[1771075325732,0.014399,69484.0,69476.0,0.01492]
[1771075326029,0.014399,69483.0,69476.0,0.01492]
[1771075326236,0.014399,69484.0,69476.0,0.01492]
[1771075326430,0.014399,69484.0,69472.0,0.14408]
[1771075326431,0.01496,69487.0,69475.0,0.014401]
[1771075326637,0.014397,69496.0,69481.0,0.0144]
[1771075326837,0.01492,69497.0,69485.0,0.014399]
[1771075327135,0.029317,69497.0,69485.0,0.014399]
[1771075327335,0.01492,69497.0,69487.0,0.014399]
[1771075327536,0.14404,69498.0,69489.0,0.014398]
[1771075327730,0.14404,69498.0,69493.0,0.014397]
[1771075327929,0.14404,69498.0,69490.0,0.014398]
[1771075328130,0.14404,69498.0,69488.0,0.01492]
[1771075328131,0.01492,69503.0,69492.0,0.014398]
[1771075328336,0.014405,69457.0,69429.0,0.40285375]
[1771075328539,0.014405,69457.0,69393.0,0.720925]
[1771075328540,0.01492,69459.0,69447.0,0.014407]
[1771075328727,0.01496,69458.0,69446.0,0.014407]
[1771075328927,0.01496,69458.0,69442.0,0.01496]
[1771075329126,0.029365,69458.0,69444.0,0.014407]
[1771075329326,0.00010847,69457.0,69446.0,0.014407]
[1771075329531,0.014406,69454.0,69446.0,0.014407]
[1771075329738,0.014406,69454.0,69442.0,0.029368]
[1771075329739,0.014406,69451.0,69442.0,0.029368]
[1771075329937,0.00011901,69450.0,69446.0,0.014407]
[1771075330236,0.014405,69455.0,69446.0,0.014407]
[1771075330431,0.014405,69456.0,69447.0,0.014407]
[1771075330637,0.014406,69453.0,69444.0,0.014407]
[1771075330831,0.014407,69449.0,69443.0,0.029368]
[1771075331239,0.014406,69450.0,69444.0,0.014408]
[1771075331436,0.014406,69450.0,69445.0,0.01496]
[1771075331737,0.014406,69452.0,69446.0,0.014407]
[1771075331933,0.014405,69455.0,69445.0,0.01496]
[1771075332141,0.014405,69454.0,69448.0,0.014406]
[1771075332334,0.014405,69454.0,69448.0,0.014407]
[1771075332530,0.014403,69467.0,69447.0,0.01496]
[1771075332740,0.719918,69491.0,69448.0,8.8e-07]
[1771075332741,0.014406,69449.0,69448.0,8.8e-07]
[1771075332939,0.014406,69450.0,69437.0,0.014409]
[1771075332940,0.014408,69444.0,69437.0,0.014409]
[1771075333237,0.014408,69441.0,69434.0,0.39621922]
[1771075333435,0.014408,69444.0,69436.0,0.014409]
[1771075333637,0.014407,69446.0,69436.0,0.014409]
[1771075333638,0.014408,69441.0,69436.0,0.01496]
[1771075333830,0.014409,69437.0,69436.0,0.01496]
[1771075334238,0.014409,69437.0,69434.0,0.01496]
[1771075334434,0.014408,69441.0,69435.0,0.01496]
[1771075334638,0.014409,69437.0,69435.0,0.01496]
[1771075335238,0.014409,69437.0,69434.0,0.01496]
[1771075335437,0.01441,69434.0,69424.0,0.014412]
[1771075335741,0.01496,69439.0,69428.0,0.014411]
[1771075335742,0.014409,69437.0,69428.0,0.014411]
[1771075335933,0.014409,69435.0,69428.0,0.014411]
[1771075336239,0.014409,69436.0,69428.0,0.014411]
[1771075336640,0.029369,69439.0,69430.0,0.01441]
[1771075337141,0.0519412,69439.0,69415.0,0.39395343]
[1771075337334,0.01441,69432.0,69421.0,0.014412]
[1771075337535,0.01441,69432.0,69423.0,0.014412]
[1771075337741,0.014409,69439.0,69419.0,0.39904416]
[1771075338035,0.014409,69439.0,69404.0,0.720808]
[1771075338036,0.014407,69446.0,69432.0,0.01441]
[1771075338236,0.014407,69449.0,69432.0,0.39904416]
[1771075338441,0.014407,69445.0,69437.0,0.41345316]
[1771075338739,0.14408,69454.0,69447.0,0.014407]
[1771075338929,0.14408,69454.0,69446.0,0.01496]
[1771075339134,0.014406,69451.0,69441.0,0.014408]
[1771075339336,0.014406,69451.0,69443.0,0.014408]
[1771075339537,0.014407,69449.0,69442.0,0.01496]
[1771075339736,0.014406,69451.0,69442.0,0.01496]
[1771075340143,0.014407,69449.0,69439.0,0.014408]
[1771075340337,0.01496,69451.0,69435.0,0.014409]
[1771075340537,0.014407,69447.0,69439.0,0.014409]
[1771075340743,0.014407,69447.0,69435.0,0.014409]
[1771075340744,0.03459122,69425.0,69396.0,0.39976957]
[1771075340947,0.014413,69417.0,69399.0,0.40169213]
[1771075341138,0.014414,69411.0,69399.0,0.40169213]
[1771075341344,0.014414,69413.0,69401.0,0.40169213]
[1771075341543,0.014413,69420.0,69401.0,0.40169213]
[1771075341544,0.014413,69416.0,69401.0,0.40169213]
[1771075341743,0.014413,69416.0,69302.0,0.00292003]
[1771075341744,0.014417,69399.0,69396.0,0.01496]
[1771075341947,0.00011616,69398.0,69386.0,0.37006155]
[1771075342247,0.00011616,69398.0,69379.0,0.014421]
[1771075342248,0.014418,69396.0,69387.0,0.01496]
[1771075342444,0.014418,69392.0,69388.0,0.15904]
[1771075342644,0.014417,69397.0,69379.0,0.37006155]
[1771075342848,0.014417,69397.0,69358.0,1.44112]
[1771075342849,0.014412,69421.0,69394.0,0.37006155]
[1771075343144,0.014412,69421.0,69370.0,0.15990971]
[1771075343145,0.03597972,69421.0,69400.0,0.37006155]
[1771075343345,0.014413,69419.0,69394.0,0.38447955]
[1771075343549,0.014413,69416.0,69398.0,0.37006155]
[1771075343743,0.014414,69413.0,69398.0,0.37006155]
[1771075343946,0.01496,69423.0,69399.0,0.01496]
[1771075343947,0.014414,69414.0,69399.0,0.01496]
[1771075344150,0.014413,69417.0,69401.0,0.014416]
[1771075344342,0.014413,69420.0,69402.0,0.01496]
[1771075344541,0.014412,69421.0,69403.0,0.14412]
[1771075344747,0.014413,69419.0,69408.0,0.014415]
[1771075344944,0.014413,69419.0,69409.0,0.01496]
[1771075345142,0.014412,69423.0,69406.0,0.37006155]
[1771075345452,0.01496,69427.0,69407.0,0.37006155]
[1771075345746,0.014413,69420.0,69410.0,0.014415]
[1771075345943,0.01496,69427.0,69406.0,0.014415]
[1771075345944,0.014412,69421.0,69409.0,0.014415]
[1771075346139,0.014413,69420.0,69410.0,0.15908]
[1771075346349,0.014414,69414.0,69406.0,0.14412]
[1771075346550,0.14412,69428.0,69407.0,0.01496]
[1771075346551,0.014413,69417.0,69407.0,0.01496]
[1771075346745,0.01496,69421.0,69407.0,0.01496]
[1771075346947,0.014413,69417.0,69408.0,0.01496]
[1771075347143,0.014413,69418.0,69409.0,0.01496]
[1771075347448,0.014412,69423.0,69409.0,0.15908]
[1771075347650,0.014413,69419.0,69410.0,0.01496]
[1771075347950,0.014412,69421.0,69411.0,0.15908]
[1771075348152,0.014412,69422.0,69411.0,0.173494]
[1771075348453,0.014412,69421.0,69411.0,0.15908]
[1771075348648,0.01496,69425.0,69411.0,0.15908]
[1771075348851,0.014412,69424.0,69413.0,0.014414]
[1771075349244,0.158528,69440.0,69423.0,0.014412]
[1771075349449,0.01441,69433.0,69424.0,0.15908]
[1771075349647,0.01441,69434.0,69424.0,0.15908]
[1771075349845,0.014408,69441.0,69425.0,0.37006155]
[1771075350048,0.014409,69439.0,69425.0,0.38447255]
[1771075350251,0.014409,69437.0,69421.0,0.014412]
[1771075350441,0.014409,69437.0,69418.0,0.37006155]
[1771075350442,0.01441,69435.0,69422.0,0.173492]
[1771075350640,0.01441,69434.0,69423.0,0.01496]
[1771075350846,0.01441,69432.0,69423.0,0.01496]
[1771075351044,0.01496,69442.0,69424.0,0.15908]
[1771075351244,0.014409,69436.0,69424.0,0.15908]
[1771075351449,0.014409,69437.0,69425.0,0.173491]
[1771075351652,0.014408,69443.0,69425.0,0.173491]
[1771075351653,0.014409,69439.0,69426.0,0.029371]
[1771075352555,0.41581839,69461.0,69428.0,0.39666079]
[1771075352754,0.158526,69451.0,69434.0,0.014409]
[1771075352953,0.14412,69451.0,69435.0,0.01496]
[1771075353256,0.01496,69457.0,69438.0,0.39666079]
[1771075353456,0.01496,69457.0,69438.0,0.014409]
[1771075353457,0.014406,69452.0,69438.0,0.014409]
[1771075353655,0.014406,69453.0,69440.0,0.014408]
[1771075353856,0.014405,69458.0,69442.0,0.014408]
[1771075354055,0.014405,69458.0,69440.0,0.014408]
[1771075354056,0.014405,69455.0,69443.0,0.01496]
[1771075354256,0.014405,69456.0,69443.0,0.01496]
[1771075354453,0.014405,69456.0,69443.0,0.029368]
[1771075354657,0.014405,69455.0,69443.0,0.01496]
[1771075354857,0.014405,69458.0,69445.0,0.014407]
[1771075355161,0.014405,69456.0,69443.0,0.01496]
[1771075355360,0.014405,69455.0,69443.0,0.01496]
[1771075355554,0.014405,69455.0,69443.0,0.029368]
[1771075355862,0.014405,69455.0,69443.0,0.01496]
[1771075356558,0.014405,69458.0,69443.0,0.029368]
[1771075356758,0.028809,69459.0,69446.0,0.014407]
[1771075356962,0.014404,69459.0,69447.0,0.15904]
[1771075357154,0.014405,69458.0,69447.0,0.15904]
[1771075357662,0.014405,69457.0,69447.0,0.15904]
[1771075357860,0.028809,69459.0,69447.0,0.15904]
[1771075358161,0.014405,69458.0,69447.0,0.15904]
[1771075358357,0.014404,69459.0,69447.0,0.15904]
[1771075358562,0.014405,69458.0,69447.0,0.15904]
[1771075359354,0.014405,69457.0,69447.0,0.15904]
[1771075360060,0.158524,69462.0,69447.0,0.15904]
[1771075360257,0.014402,69471.0,69451.0,0.39666079]
[1771075360458,0.014403,69469.0,69455.0,0.014405]
[1771075360659,0.14412,69473.0,69458.0,0.42546923]
[1771075360866,0.014402,69472.0,69458.0,0.42546923]
[1771075361160,0.014402,69471.0,69459.0,0.014404]
[1771075361365,0.014402,69470.0,69460.0,0.01492]
[1771075361659,0.14412,69473.0,69465.0,0.014403]
[1771075361967,0.029321,69476.0,69464.0,0.014403]
[1771075361968,0.029321,69476.0,69466.0,0.01492]
[1771075362463,0.014401,69475.0,69466.0,0.01492]
[1771075362965,0.014402,69472.0,69460.0,0.014404]
[1771075363160,0.01492,69476.0,69454.0,0.014405]
[1771075363161,0.014403,69467.0,69454.0,0.014405]
[1771075363366,0.014402,69471.0,69457.0,0.014405]
[1771075363761,0.014402,69471.0,69459.0,0.014404]
[1771075363966,0.14548671,69469.0,69413.0,0.4294711]
[1771075364156,0.14548671,69469.0,69415.0,0.4294711]
[1771075364157,0.014408,69444.0,69415.0,0.4294711]
[1771075364469,0.014411,69426.0,69417.0,0.4294711]
[1771075364767,0.014412,69421.0,69418.0,0.58864106]
[1771075364965,0.014411,69427.0,69419.0,0.01496]
[1771075365165,0.029369,69437.0,69420.0,0.014412]
[1771075365370,0.01441,69431.0,69420.0,0.44397306]
[1771075365559,0.14412,69451.0,69436.0,0.014409]
[1771075365761,0.014407,69445.0,69437.0,0.01496]
[1771075365961,0.014408,69442.0,69438.0,0.01496]
[1771075366161,0.014407,69445.0,69438.0,0.01496]
[1771075366567,0.15908,69451.0,69421.0,0.42196814]
[1771075366767,0.014408,69440.0,69428.0,0.43637914]
[1771075366966,0.014408,69440.0,69429.0,0.15908]
[1771075367157,0.014409,69436.0,69429.0,0.15908]
[1771075367366,0.01441,69434.0,69428.0,0.42196814]
[1771075367566,0.01441,69434.0,69429.0,0.15908]
[1771075367766,0.014407,69446.0,69429.0,0.15908]
[1771075368070,0.014408,69441.0,69429.0,0.57826472]
[1771075368370,0.014409,69438.0,69429.0,0.57826472]
[1771075368565,0.014408,69440.0,69429.0,0.57826472]
[1771075368770,0.014409,69438.0,69429.0,0.57826472]
[1771075369070,0.014409,69437.0,69429.0,0.57826472]
[1771075369267,0.014409,69436.0,69430.0,0.15908]
[1771075370167,0.01441,69434.0,69430.0,0.15908]
[1771075370367,0.01441,69431.0,69427.0,0.01492]
[1771075370569,0.01441,69430.0,69427.0,0.01492]
[1771075371170,0.014407,69446.0,69428.0,0.42599841]
[1771075371469,0.014407,69446.0,69429.0,0.15904]
[1771075371470,0.014409,69437.0,69429.0,0.15904]
[1771075371771,0.01418546,69437.0,69429.0,0.15904]
[1771075371965,0.01441,69433.0,69430.0,0.01492]
[1771075372170,0.01441,69433.0,69413.0,0.014414]
[1771075372171,0.01441,69431.0,69429.0,0.14412]
[1771075372467,0.01441,69432.0,69430.0,0.01492]
[1771075372672,0.01441,69432.0,69429.0,0.14412]
[1771075372673,0.01441,69431.0,69429.0,0.14412]
[1771075373172,0.01441,69431.0,69430.0,0.01492]
[1771075373383,0.014409,69436.0,69423.0,0.01492]
[1771075373567,0.014411,69427.0,69424.0,0.01492]
[1771075373962,0.014411,69428.0,69424.0,0.01492]
[1771075374368,0.014411,69427.0,69424.0,0.01492]
[1771075375073,0.014411,69428.0,69424.0,0.01492]
[1771075375268,0.014411,69427.0,69424.0,0.01492]
[1771075375469,0.01441,69430.0,69424.0,0.01492]
[1771075375673,0.014411,69428.0,69424.0,0.01492]
[1771075376675,0.014411,69428.0,69424.0,0.0005309]
[1771075376676,0.014411,69426.0,69424.0,0.0005309]
[1771075377468,0.014411,69426.0,69425.0,0.01492]
[1771075377873,0.014411,69426.0,69412.0,0.43046356]
[1771075378072,0.014412,69425.0,69413.0,0.15904]
[1771075378269,0.014412,69424.0,69413.0,0.15904]
[1771075378969,0.014411,69425.0,69413.0,0.15904]
[1771075379172,0.014412,69422.0,69413.0,0.15904]
[1771075379373,0.014414,69416.0,69406.0,0.41594733]
[1771075379679,0.014413,69417.0,69407.0,0.15904]
[1771075380074,0.014413,69416.0,69407.0,0.15904]
[1771075380380,0.00010913,69415.0,69407.0,0.15904]
[1771075380675,0.014414,69413.0,69408.0,0.15904]
[1771075380875,0.42748412,69449.0,69401.0,0.41609776]
[1771075381174,0.028822,69430.0,69412.0,0.41606138]
[1771075381378,0.05147972,69434.0,69416.0,0.41125738]
[1771075381674,0.014411,69430.0,69418.0,0.43861465]
[1771075381879,0.01441,69432.0,69422.0,0.40978865]
[1771075382071,0.01441,69432.0,69423.0,0.42466865]
[1771075382267,0.014408,69441.0,69423.0,0.42466865]
[1771075382268,0.14412,69448.0,69429.0,0.40407315]
[1771075382478,0.014408,69441.0,69430.0,0.41895315]
[1771075382672,0.01488,69447.0,69433.0,0.40407315]
[1771075382673,0.014408,69443.0,69433.0,0.40407315]
[1771075382978,0.014406,69451.0,69435.0,0.40407315]
[1771075383280,0.028814,69449.0,69438.0,0.40407315]
[1771075383479,0.014407,69448.0,69439.0,0.56307315]
[1771075383870,0.014408,69442.0,69434.0,0.40407315]
[1771075384071,0.014407,69446.0,69436.0,0.40407315]
[1771075384272,0.014407,69447.0,69436.0,0.40407315]
[1771075384673,0.014406,69454.0,69440.0,0.014408]
[1771075384872,0.159,69456.0,69441.0,0.01488]
[1771075384873,0.4892043,69450.0,69441.0,0.01488]
[1771075385074,0.014406,69449.0,69441.0,0.41895315]
[1771075385276,0.4892043,69450.0,69441.0,0.41895315]
[1771075385572,0.159,69456.0,69441.0,0.41895315]
[1771075385573,0.14412,69456.0,69444.0,0.014408]
[1771075385771,0.014405,69455.0,69445.0,0.56307315]
[1771075385974,0.14412,69479.0,69449.0,0.40407315]
[1771075386279,0.4162375,69448.0,69398.0,0.40407315]
[1771075386477,0.01488,69473.0,69380.0,0.5]
[1771075386478,0.014412,69425.0,69409.0,0.40407315]
[1771075386669,0.014411,69430.0,69411.0,0.40407315]
[1771075386670,0.014412,69421.0,69411.0,0.40407315]
[1771075386873,0.014411,69426.0,69413.0,0.40407315]
[1771075387073,0.014411,69426.0,69415.0,0.40407315]
[1771075387377,0.014412,69424.0,69415.0,0.40407315]
[1771075387581,0.01492,69433.0,69416.0,0.01492]
[1771075387883,0.4162375,69439.0,69417.0,0.15904]
[1771075388084,0.014413,69417.0,69409.0,0.40407315]
[1771075388274,0.014414,69414.0,69411.0,0.40407315]
[1771075388479,0.014414,69414.0,69412.0,0.40407315]
[1771075388782,0.01441,69432.0,69413.0,0.15904]
[1771075388980,0.014414,69412.0,69403.0,0.40407315]
[1771075389170,0.014411,69427.0,69405.0,0.40407315]
[1771075389479,0.014412,69422.0,69407.0,0.40407315]
[1771075389682,0.014414,69412.0,69407.0,0.40407315]
[1771075389977,0.043242,69421.0,69407.0,0.40407315]
[1771075390179,0.014414,69413.0,69408.0,0.01492]
[1771075390378,0.014412,69422.0,69409.0,0.54819315]
[1771075390379,0.043242,69420.0,69409.0,0.54819315]
[1771075390586,0.014414,69413.0,69409.0,0.54819315]
[1771075390779,0.043242,69421.0,69409.0,0.54819315]
[1771075390979,0.014414,69413.0,69409.0,0.54819315]
[1771075391277,0.043242,69421.0,69409.0,0.54819315]
[1771075391483,0.014415,69410.0,69409.0,0.40407315]
[1771075391681,0.014413,69418.0,69409.0,0.40407315]
[1771075391980,0.043242,69430.0,69411.0,0.40407315]
[1771075392171,0.014413,69418.0,69413.0,0.40407315]
[1771075392378,0.014414,69415.0,69414.0,0.14412]
[1771075392577,0.014413,69418.0,69414.0,0.01488]
[1771075392791,0.014413,69418.0,69414.0,0.159]
[1771075392981,0.014414,69413.0,69406.0,0.40407315]
[1771075393184,0.014414,69413.0,69408.0,0.40407315]
[1771075393485,0.014414,69414.0,69408.0,0.40407315]
[1771075394279,0.014413,69420.0,69411.0,0.40407315]
[1771075394483,0.01492,69433.0,69408.0,0.014415]
[1771075394484,0.014413,69417.0,69412.0,0.56311315]
[1771075394682,0.014412,69422.0,69413.0,0.01488]
[1771075394884,0.043242,69421.0,69413.0,0.01488]
[1771075395385,0.057655,69420.0,69413.0,0.01488]
[1771075395583,0.014413,69417.0,69413.0,0.01488]
[1771075396176,0.043242,69420.0,69412.0,0.14416]
[1771075396382,0.014415,69411.0,69406.0,0.40407315]
[1771075396587,0.014414,69411.0,69407.0,0.56311315]
[1771075396778,0.057655,69419.0,69407.0,0.40407315]
[1771075397087,0.014414,69413.0,69408.0,0.15904]
[1771075397580,0.014414,69413.0,69408.0,0.56311315]
[1771075397784,0.014415,69411.0,69408.0,0.56311315]
[1771075398086,0.014412,69423.0,69414.0,0.40407315]
[1771075398288,0.028825,69428.0,69416.0,0.40407315]
[1771075398489,0.014413,69419.0,69416.0,0.40407315]
[1771075398683,0.014412,69424.0,69416.0,0.40407315]
[1771075399080,0.014413,69420.0,69416.0,0.40407315]
[1771075399388,0.014413,69419.0,69416.0,0.40407315]
[1771075399581,0.014413,69420.0,69416.0,0.40407315]
[1771075399986,0.014412,69422.0,69416.0,0.40407315]
[1771075400383,0.01488,69438.0,69416.0,0.40407315]
[1771075400688,0.01488,69438.0,69405.0,0.014415]
[1771075400689,0.4162375,69419.0,69378.0,0.14416]
[1771075400884,0.4162375,69403.0,69378.0,0.01488]
[1771075401182,0.4162375,69403.0,69363.0,0.01514485]
[1771075401183,0.014421,69380.0,69379.0,0.40407315]
[1771075401386,0.4162375,69417.0,69384.0,0.40407315]
[1771075401685,0.4162375,69417.0,69377.0,0.014421]
[1771075401686,0.014415,69406.0,69386.0,0.40407315]
[1771075401990,0.00014355,69405.0,69387.0,0.01488]
[1771075402180,0.00014355,69405.0,69383.0,0.40407315]
[1771075402181,0.014418,69392.0,69388.0,0.01488]
[1771075402377,0.014418,69393.0,69389.0,0.15904]
[1771075402687,0.014418,69395.0,69389.0,0.56311315]
[1771075402890,0.014416,69403.0,69389.0,0.56311315]
[1771075403089,0.014418,69395.0,69389.0,0.56311315]
[1771075403291,0.014417,69400.0,69389.0,0.56311315]
[1771075403490,0.014418,69396.0,69389.0,0.56311315]
[1771075403890,0.00014355,69405.0,69390.0,0.40407315]
[1771075404188,0.014418,69396.0,69390.0,0.40407315]
[1771075404491,0.014417,69396.0,69390.0,0.40407315]
[1771075404788,0.014418,69395.0,69390.0,0.40407315]
[1771075404990,0.014417,69397.0,69390.0,0.40407315]
[1771075405586,0.014417,69396.0,69390.0,0.40407315]
[1771075405778,0.014418,69395.0,69390.0,0.40407315]
[1771075405985,0.014417,69400.0,69390.0,0.40407315]
[1771075406191,0.014418,69395.0,69390.0,0.40407315]
[1771075406688,0.014416,69402.0,69391.0,0.15904]
[1771075406884,0.014418,69394.0,69391.0,0.15904]
[1771075407083,0.014418,69396.0,69391.0,0.15904]
[1771075407284,0.014418,69395.0,69391.0,0.15904]
[1771075407778,0.014417,69397.0,69391.0,0.56311315]
[1771075408192,0.014418,69396.0,69392.0,0.40407315]
[1771075409086,0.014417,69397.0,69391.0,0.15904]
[1771075409389,0.014417,69396.0,69391.0,0.15904]
[1771075409992,0.014417,69400.0,69392.0,0.40407315]
[1771075410285,0.00014355,69405.0,69382.0,0.01442]
[1771075410286,0.014415,69407.0,69394.0,0.40407315]
[1771075410487,0.014416,69402.0,69396.0,0.40407315]
[1771075410681,0.14416,69422.0,69398.0,0.40407315]
[1771075410882,0.14416,69422.0,69391.0,0.014418]
[1771075410883,0.4162375,69407.0,69330.0,0.5]
[1771075411084,0.11138851,69429.0,69326.0,3e-08]
[1771075411085,0.014432,69327.0,69326.0,3e-08]
[1771075411280,0.014432,69329.0,69326.0,0.01504]
[1771075411483,0.014429,69340.0,69315.0,0.43153713]
[1771075411689,0.014429,69340.0,69284.0,0.014441]
[1771075411690,0.42936891,69341.0,69316.0,0.02256044]
[1771075411886,0.014433,69322.0,69294.0,0.43153713]
[1771075412088,0.014433,69322.0,69277.0,0.014442]
[1771075412089,0.00015008,69321.0,69296.0,0.43153713]
[1771075412386,0.014234,69315.0,69298.0,0.43153713]
[1771075412594,0.014435,69311.0,69300.0,0.43153713]
[1771075412890,0.42936891,69337.0,69301.0,0.43153713]
[1771075413088,0.01504,69339.0,69282.0,0.49175536]
[1771075413089,0.014432,69328.0,69303.0,0.43153713]
[1771075413389,0.0124261,69305.0,69304.0,0.15924]
[1771075413590,0.014437,69302.0,69286.0,0.43153713]
[1771075413785,0.014438,69297.0,69288.0,0.43153713]
[1771075413981,0.014438,69297.0,69210.0,1.44453016]
[1771075413982,4.096e-05,69305.0,69274.0,0.17787017]
[1771075414184,0.014441,69283.0,69279.0,0.17787017]
[1771075414386,0.028879,69304.0,69279.0,0.17787017]
[1771075414387,0.0040431,69281.0,69280.0,0.73616]
[1771075414587,0.0040431,69281.0,69279.0,0.17787017]
[1771075414588,0.014441,69282.0,69279.0,0.17787017]
[1771075414790,0.028879,69303.0,69270.0,0.18181617]
[1771075414791,0.028879,69286.0,69270.0,0.18181617]
[1771075414982,0.43467222,69301.0,69274.0,0.15928]
[1771075415186,0.43467222,69301.0,69255.0,0.10642102]
[1771075415187,0.057764,69274.0,69261.0,0.14424]
[1771075415384,0.057764,69274.0,69199.0,0.74402753]
[1771075415385,0.43467222,69299.0,69240.0,0.25672219]
[1771075415591,0.42936891,69289.0,69249.0,0.08054915]
[1771075415799,0.42936891,69317.0,69256.0,0.08049915]
[1771075416090,0.42936891,69306.0,69260.0,0.08049915]
[1771075416291,0.42936891,69304.0,69262.0,0.08036612]
[1771075416490,0.42936891,69302.0,69264.0,0.08031612]
[1771075416696,0.42936891,69309.0,69266.0,0.07820754]
[1771075416989,0.42936891,69309.0,69258.0,0.014446]
[1771075416990,0.42936891,69315.0,69268.0,0.07820754]
[1771075417288,0.42936891,69315.0,69270.0,0.07820754]
[1771075417496,0.01508226,69314.0,69277.0,0.07820754]
[1771075417693,0.01508226,69314.0,69269.0,0.16332072]
[1771075417694,0.01508226,69314.0,69279.0,0.04530446]
[1771075417894,0.41857321,69312.0,69281.0,0.05610016]
[1771075418091,0.01508226,69318.0,69283.0,0.05610016]
[1771075418392,0.44445117,69318.0,69284.0,0.07126016]
[1771075418591,0.01508226,69317.0,69284.0,0.05610016]
[1771075418792,0.42936891,69316.0,69285.0,0.15944]
[1771075419090,0.01508226,69316.0,69286.0,0.05037651]
[1771075419290,0.01508226,69315.0,69286.0,0.05037651]
[1771075419492,0.42936891,69319.0,69287.0,0.15944]
[1771075419698,0.42936891,69319.0,69288.0,0.14428]
[1771075419993,0.01508226,69318.0,69289.0,0.06784367]
[1771075420295,0.43064525,69372.0,69288.0,0.14428]
[1771075420296,0.42936891,69335.0,69302.0,0.05276141]
[1771075420598,0.42936891,69335.0,69306.0,0.05040569]
[1771075420792,0.41247573,69343.0,69313.0,0.04708077]
[1771075420992,0.41247573,69357.0,69325.0,0.04708077]
[1771075421192,0.41247573,69357.0,69326.0,0.20656077]
[1771075421495,0.41247573,69357.0,69327.0,0.04708077]
[1771075421698,0.41247573,69357.0,69328.0,0.15948]
[1771075421894,0.41247573,69357.0,69320.0,0.04004549]
[1771075422097,0.42763573,69357.0,69321.0,0.15948]
[1771075422389,0.41247573,69357.0,69325.0,0.014431]
[1771075422594,0.41247573,69357.0,69315.0,0.57732]
[1771075422595,0.41247573,69357.0,69327.0,0.03692945]
[1771075422892,0.41247573,69357.0,69313.0,0.014433]
[1771075422893,0.41247573,69357.0,69329.0,0.03692945]
[1771075423088,0.41409941,69365.0,69331.0,0.03692945]
[1771075423289,0.41409941,69365.0,69319.0,1.457792]
[1771075423290,0.41409941,69365.0,69324.0,0.03692945]
[1771075423484,0.41409941,69365.0,69325.0,0.7368]
[1771075424090,0.40531361,69365.0,69325.0,0.7368]
[1771075424287,0.40531361,69365.0,69337.0,0.014428]
[1771075424488,0.40531361,69365.0,69338.0,0.15948]
[1771075424686,0.40928581,69374.0,69340.0,0.12681176]
[1771075425292,0.40928581,69374.0,69345.0,0.014427]
[1771075425490,0.40928581,69381.0,69350.0,0.014426]
[1771075425684,0.40928581,69381.0,69351.0,0.33625201]
[1771075425890,0.40928581,69381.0,69352.0,0.33625201]
[1771075426093,0.40928581,69381.0,69330.0,0.01443]
[1771075426094,0.40928581,69392.0,69354.0,0.17677201]
[1771075426291,0.40928581,69389.0,69355.0,0.7368]
[1771075426488,0.40928581,69389.0,69362.0,0.014423]
[1771075426695,0.40928581,69389.0,69369.0,0.014422]
[1771075426997,0.40928581,69389.0,69370.0,0.15948]
[1771075427298,0.40928581,69397.0,69371.0,0.014421]
[1771075427489,0.40928581,69397.0,69372.0,0.014421]
[1771075427690,0.40928581,69397.0,69376.0,0.01442]
[1771075427896,0.40928581,69397.0,69377.0,0.01516]
[1771075428398,0.40928581,69410.0,69379.0,0.01442]
[1771075428597,0.40928581,69410.0,69380.0,0.14432]